fUST/lending_fUST_20250123
["ID","MTS","AMOUNT","RATE_DAILY","PERIOD"]
[350127963,1737645045927,-155.433122,0.00021349,2]
[350127964,1737645045939,-3000.0,0.0002135,2]
[350127965,1737645045950,-3000.0,0.0002136,2]
[350127966,1737645045963,-634.28,0.00021369,3]
[350127967,1737645045979,-1176.6,0.00021369,3]
[350127968,1737645045991,-2081.0,0.00021369,3]
[350127969,1737645046005,-818.19,0.00021369,3]
[350127970,1737645046016,-933.44,0.00021369,3]
[350127971,1737645046028,-917.49,0.00021369,3]
[350127972,1737645046043,-500.0,0.00021369,3]
[350127973,1737645046059,-5760.95,0.00021369,3]
[350127974,1737645046072,-500.0,0.00021369,3]
[350127975,1737645046087,-2591.49,0.00021369,3]
[350127976,1737645046099,-500.0,0.00021369,3]
[350127977,1737645046110,-3000.0,0.0002137,2]
[350127978,1737645046122,-3000.0,0.0002138,2]
[350127979,1737645046135,-171.72944098,0.00021382,2]
[350127981,1737645046146,-3000.0,0.0002139,2]
[350127982,1737645046158,-1510.68950647,0.000214,2]
[350127983,1737645046171,-3000.0,0.000214,2]
[350127984,1737645046183,-3000.0,0.0002141,2]
[350127985,1737645046194,-3000.0,0.0002142,2]
[350127987,1737645046206,-3000.0,0.0002143,2]
[350127989,1737645046217,-151.0,0.0002143,2]
[350127991,1737645046229,-4505.106924,0.0002144,2]
[350127993,1737645046241,-1020.52201186,0.00021448,2]
[350127995,1737645046252,-290.13277343,0.00021452,2]
[350127996,1737645046264,-16349.55484566,0.000215,3]
[350127997,1737645046277,-151.0,0.000215,2]
[350127998,1737645046289,-261.0,0.000215,2]
[350127999,1737645046301,-1510.68950647,0.000215,2]
[350128002,1737645046317,-634.28,0.00021506,3]
[350128005,1737645046329,-1176.6,0.00021506,3]
[350128009,1737645046341,-2081.0,0.00021506,3]
[350128013,1737645046353,-818.19,0.00021506,3]
[350128015,1737645046365,-933.44,0.00021506,3]
[350128017,1737645046376,-917.49,0.00021506,3]
[350128019,1737645046388,-500.0,0.00021506,3]
[350128020,1737645046400,-5760.95,0.00021506,3]
[350128021,1737645046412,-500.0,0.00021506,3]
[350128022,1737645046424,-2591.49,0.00021506,3]
[350128023,1737645046436,-500.0,0.00021506,3]
[350128024,1737645046447,-380.56693304,0.00021521,2]
[350128025,1737645046459,-1000.0,0.00021521,2]
[350128026,1737645046472,-1000.0,0.00021521,2]
[350128027,1737645046596,-1000.0,0.00021521,2]
[350128028,1737645046619,-1000.0,0.00021521,2]
[350128029,1737645046631,-1068.76614565,0.00021521,2]
[350128030,1737645046642,-2950.0,0.0002157,2]
[350128031,1737645046652,-6054.58365923,0.0002157,2]
[350128032,1737645046665,-11706.0,0.000216,4]
[350128033,1737645046676,-1510.68950647,0.000216,2]
[350128034,1737645046687,-290.13277343,0.00021624,3]
[350128035,1737645046698,-634.28,0.00021643,3]
[350128036,1737645046711,-1176.6,0.00021643,3]
[350128037,1737645046722,-2081.0,0.00021643,3]
[350128038,1737645046733,-818.19,0.00021643,3]
[350128039,1737645046743,-933.44,0.00021643,3]
[350128040,1737645046758,-917.49,0.00021643,3]
[350128041,1737645046767,-500.0,0.00021643,3]
[350128042,1737645046778,-5760.95,0.00021643,3]
[350128043,1737645046789,-500.0,0.00021643,3]
[350128044,1737645046799,-2591.49,0.00021643,3]
[350128045,1737645046816,-500.0,0.00021643,3]
[350128046,1737645046826,-1510.68950647,0.000217,2]
[350128047,1737645046836,-634.28,0.0002178,3]
[350128048,1737645046846,-1176.6,0.0002178,3]
[350128049,1737645046856,-2081.0,0.0002178,3]
[350128050,1737645046866,-818.19,0.0002178,3]
[350128051,1737645046877,-933.44,0.0002178,3]
[350128052,1737645046887,-917.49,0.0002178,3]
[350128053,1737645046898,-500.0,0.0002178,3]
[350128054,1737645046908,-5760.95,0.0002178,3]
[350128055,1737645046918,-500.0,0.0002178,3]
[350128056,1737645046929,-2591.49,0.0002178,3]
[350128057,1737645046938,-500.0,0.0002178,3]
[350128058,1737645046947,-290.13277343,0.00021797,3]
[350128059,1737645046958,-13365.06953595,0.000218,5]
[350128060,1737645046967,-5315.52774667,0.000218,5]
[350128061,1737645046977,-1000.0,0.000218,2]
[350128062,1737645046986,-1000.0,0.000218,2]
[350128063,1737645046996,-1000.0,0.000218,2]
[350128064,1737645047005,-169.3173,0.000218,2]
[350128066,1737645047015,-1005.42,0.000218,30]
[350128068,1737645047024,-1510.68950647,0.000218,2]
[350128070,1737645047034,-224575.24122,0.000218,2]
[350128071,1737645047044,-151.0,0.000218,2]
[350128073,1737645047059,-261.672544,0.000218,2]
[350128075,1737645047068,-5000.0,0.00021853,2]
[350128078,1737645047079,-5000.0,0.00021853,2]
[350128079,1737645047091,-5000.0,0.00021853,2]
[350128082,1737645047100,-5000.0,0.00021853,2]
[350128084,1737645047111,-5000.0,0.00021853,2]
[350128085,1737645047123,-500.0,0.00021873,2]
[350128088,1737645047134,-329.75039893,0.00021873,2]
[350128089,1737645047143,-162.86055011,0.00021873,2]
[350128092,1737645047152,-500.0,0.00021873,2]
[350128094,1737645047162,-500.0,0.00021873,2]
[350128096,1737645047171,-151.57644606,0.00021873,2]
[350128098,1737645047184,-500.0,0.00021873,2]
[350128100,1737645047195,-500.0,0.00021873,2]
[350128102,1737645047205,-500.0,0.00021873,2]
[350128104,1737645047215,-500.0,0.00021873,2]
[350128106,1737645047225,-500.0,0.00021873,2]
[350128108,1737645047234,-162481.49211019,0.000219,2]
[350128118,1737645047379,-936.91002048,0.000219,2]
[350128120,1737645047448,10000.0,0.00024,120]
[350128127,1737645047500,-500.0,0.00019178,2]
[350128129,1737645047510,-500.0,0.00019315,3]
[350128131,1737645047519,-533.55,0.00019452,3]
[350128133,1737645047528,-395.0,0.00019829,2]
[350128135,1737645047538,-1114.57,0.00021232,3]
[350128137,1737645047547,-1114.57,0.00021369,3]
[350128138,1737645047560,-1114.57,0.00021506,3]
[350128141,1737645047570,-1114.57,0.00021643,3]
[350128143,1737645047580,-1114.57,0.0002178,3]
[350128145,1737645047590,-111634.71939878,0.000219,2]
[350128147,1737645047602,-6305.4,0.000219,2]
[350128153,1737645047654,-255.54063985,0.00019178,2]
[350128155,1737645047663,-166650.82873416,0.000219,2]
[350128159,1737645047694,10000.0,0.00024,120]
[350128165,1737645047735,-2302.56136193,0.000219,2]
[350128167,1737645047747,-3288.03878125,0.000219,2]
[350128169,1737645047758,-592.0,0.000219,2]
[350128171,1737645047769,-148684.96590724,0.000219,2]
[350128173,1737645047779,-595.18707104,0.000219,2]
[350128182,1737645047860,-500.0,0.00019178,2]
[350128184,1737645047870,-566.9632935,0.00019178,2]
[350128186,1737645047879,-583.3,0.00019315,3]
[350128188,1737645047889,-1200.0,0.00020136,2]
[350128190,1737645047899,-175921.55090739,0.000219,2]
[350128192,1737645047911,-4999.57233769,0.000219,2]
[350128195,1737645047922,-4999.81777105,0.000219,2]
[350128197,1737645047933,-698156.04160487,0.000219,2]
[350128199,1737645047943,-557033.87977542,0.000219,2]
[350128201,1737645047952,-1510.68950647,0.000219,2]
[350128203,1737645047961,-153.51,0.000219,31]
[350128205,1737645047971,-153.51,0.000219,31]
[350128207,1737645047980,-153.51,0.000219,31]
[350128209,1737645047989,-153.51,0.000219,31]
[350128211,1737645047999,-153.51,0.000219,31]
[350128213,1737645048008,-153.51,0.000219,31]
[350128215,1737645048018,-153.51,0.000219,31]
[350128217,1737645048028,-153.51,0.000219,31]
[350128219,1737645048038,-439.6888,0.00021903,15]
[350128221,1737645048047,-6054.58365923,0.00021905,2]
[350128223,1737645048060,-500.0,0.00021917,2]
[350128225,1737645048074,-500.0,0.00021917,3]
[350128227,1737645048086,-503.56490207,0.00021917,3]
[350128229,1737645048096,-500.0,0.00021917,2]
[350128231,1737645048106,-500.0,0.00021917,3]
[350128233,1737645048119,-500.0,0.00021917,3]
[350128235,1737645048130,-500.0,0.00021917,3]
[350128237,1737645048140,-510.38446383,0.00021917,3]
[350128239,1737645048149,-1000.0,0.00021917,2]
[350128241,1737645048159,-1000.0,0.00021917,2]
[350128243,1737645048169,-1000.0,0.00021917,2]
[350128245,1737645048180,-188.99309731,0.00021917,2]
[350128247,1737645048190,-634.28,0.00021917,3]
[350128249,1737645048199,-1176.6,0.00021917,3]
[350128251,1737645048209,-818.19,0.00021917,3]
[350128253,1737645048219,-933.44,0.00021917,3]
[350128255,1737645048229,-917.49,0.00021917,3]
[350128257,1737645048239,-513.2725813,0.00021917,3]
[350128259,1737645048249,-5760.95,0.00021917,3]
[350128261,1737645048259,-500.0,0.00021917,3]
[350128263,1737645048269,-2591.49,0.00021917,3]
[350128265,1737645048284,-500.0,0.00021917,3]
[350128267,1737645048302,-1114.57,0.00021917,3]
[350128269,1737645048315,-500.0,0.00021918,2]
[350128271,1737645048326,-219.80585833,0.00021918,2]
[350128273,1737645048337,-166.95,0.0002192,2]
[350128275,1737645048347,-166.95,0.0002192,2]
[350128277,1737645048357,-166.95,0.0002192,2]
[350128279,1737645048367,-166.95,0.0002192,2]
[350128280,1737645048377,-166.95,0.0002192,2]
[350128282,1737645048387,-166.95,0.0002192,2]
[350128284,1737645048397,-166.95,0.0002192,2]
[350128286,1737645048407,-290.13277343,0.00021969,3]
[350128288,1737645048417,-500.0,0.00021973,2]
[350128290,1737645048426,-20244.1660758,0.0002199,7]
[350128292,1737645048436,-9747.75064141,0.00022,10]
[350128294,1737645048446,-30000.0,0.00022,10]
[350128296,1737645048456,-30000.0,0.00022,10]
[350128298,1737645048466,-34887.37506345,0.00022,10]
[350128300,1737645048475,-30000.0,0.00022,10]
[350128302,1737645048485,-30000.0,0.00022,10]
[350128304,1737645048494,-30000.0,0.00022,10]
[350128306,1737645048504,-17840.01417659,0.00022,7]
[350128308,1737645048514,-100737.0856785,0.00022,2]
[350128310,1737645048525,-1000.0,0.00022,22]
[350128312,1737645048535,-345.48356926,0.00022,2]
[350128314,1737645048546,-23558.32646112,0.00022,2]
[350128316,1737645048559,-1000.0,0.00022,2]
[350128318,1737645048569,-834.5,0.00022,2]
[350128320,1737645048579,-1510.68950647,0.00022,2]
[350128322,1737645048589,-600.0,0.00022,3]
[350128324,1737645048598,-834.5,0.00022,2]
[350128326,1737645048609,-160.0,0.00022,7]
[350128328,1737645048619,-2000.0,0.0002202,2]
[350128330,1737645048629,-501.29224368,0.0002202,2]
[350128332,1737645048641,-2000.0,0.0002202,2]
[350128334,1737645048651,-634.28,0.00022054,3]
[350128336,1737645048661,-1176.6,0.00022054,3]
[350128338,1737645048674,-818.19,0.00022054,3]
[350128341,1737645048685,-933.44,0.00022054,3]
[350128343,1737645048695,-917.49,0.00022054,3]
[350128345,1737645048705,-5760.95,0.00022054,3]
[350128347,1737645048717,-500.0,0.00022054,3]
[350128349,1737645048727,-2591.49,0.00022054,3]
[350128350,1737645048738,-520.75190489,0.00022054,3]
[350128353,1737645048751,-1114.57,0.00022054,3]
[350128364,1737645048861,-1143.15960534,0.00022075,7]
[350128366,1737645048872,-500.0,0.000221,2]
[350128368,1737645048881,-505.42431048,0.000221,2]
[350128370,1737645048891,-1600.0,0.000221,2]
[350128372,1737645048900,-1600.0,0.000221,2]
[350128374,1737645048910,-1600.0,0.000221,2]
[350128376,1737645048919,-1600.0,0.000221,2]
[350128378,1737645048928,-1600.0,0.000221,2]
[350128380,1737645048937,-1600.0,0.000221,2]
[350128382,1737645048947,-1600.0,0.000221,2]
[350128384,1737645048956,-1600.0,0.000221,2]
[350128386,1737645048966,-1600.0,0.000221,2]
[350128388,1737645048975,-1600.0,0.000221,2]
[350128390,1737645048985,-1600.0,0.000221,2]
[350128392,1737645048995,-1600.0,0.000221,2]
[350128394,1737645049004,-1600.0,0.000221,2]
[350128396,1737645049014,-2052.12552756,0.000221,2]
[350128398,1737645049024,-1700.0,0.000221,2]
[350128400,1737645049033,-1700.0,0.000221,2]
[350128402,1737645049044,-1700.0,0.000221,2]
[350128404,1737645049057,-1700.0,0.000221,2]
[350128406,1737645049067,-1700.0,0.000221,2]
[350128408,1737645049076,-1700.0,0.000221,2]
[350128410,1737645049089,-1700.0,0.000221,2]
[350128412,1737645049099,-1700.0,0.000221,2]
[350128414,1737645049108,-1700.0,0.000221,2]
[350128416,1737645049121,-1700.0,0.000221,2]
[350128418,1737645049131,-1700.0,0.000221,2]
[350128420,1737645049140,-1700.0,0.000221,2]
[350128422,1737645049150,-1700.0,0.000221,2]
[350128424,1737645049159,-2910.56571979,0.000221,2]
[350128426,1737645049169,-500.0,0.000221,2]
[350128428,1737645049179,-513.98982225,0.000221,2]
[350128430,1737645049188,-500.0,0.000221,2]
[350128432,1737645049198,-518.06696735,0.000221,2]
[350128434,1737645049208,-500.0,0.000221,2]
[350128436,1737645049217,-500.0,0.000221,2]
[350128438,1737645049227,-500.0,0.000221,2]
[350128440,1737645049236,-724.8,0.000221,2]
[350128442,1737645049246,-1800.0,0.000221,2]
[350128444,1737645049255,-1800.0,0.000221,2]
[350128446,1737645049264,-1800.0,0.000221,2]
[350128448,1737645049273,-1800.0,0.000221,2]
[350128450,1737645049283,-1800.0,0.000221,2]
[350128452,1737645049292,-1800.0,0.000221,2]
[350128454,1737645049301,-1800.0,0.000221,2]
[350128456,1737645049315,-1800.0,0.000221,2]
[350128458,1737645049325,-1800.0,0.000221,2]
[350128460,1737645049334,-1800.0,0.000221,2]
[350128462,1737645049344,-1800.0,0.000221,2]
[350128464,1737645049353,-1800.0,0.000221,2]
[350128466,1737645049362,-1800.0,0.000221,2]
[350128468,1737645049371,-1800.0,0.000221,2]
[350128470,1737645049381,-1800.0,0.000221,2]
[350128472,1737645049391,-1800.0,0.000221,2]
[350128474,1737645049400,-1800.0,0.000221,2]
[350128476,1737645049410,-1800.0,0.000221,2]
[350128478,1737645049419,-1800.0,0.000221,2]
[350128479,1737645049429,-2720.23771196,0.000221,2]
[350128482,1737645049438,-1800.0,0.000221,2]
[350128483,1737645049448,-1800.0,0.000221,2]
[350128485,1737645049457,-1800.0,0.000221,2]
[350128487,1737645049467,-1800.0,0.000221,2]
[350128489,1737645049477,-1800.0,0.000221,2]
[350128491,1737645049486,-1800.0,0.000221,2]
[350128493,1737645049495,-1800.0,0.000221,2]
[350128494,1737645049505,-2705.56320555,0.000221,2]
[350128495,1737645049515,-691.12850119,0.000221,2]
[350128496,1737645049524,-1510.68950647,0.000221,2]
[350128497,1737645049533,-300.0,0.000221,10]
[350128498,1737645049542,-290.13277343,0.00022141,3]
[350128499,1737645049552,-634.28,0.00022191,3]
[350128500,1737645049564,-1176.6,0.00022191,3]
[350128501,1737645049573,-818.19,0.00022191,3]
[350128502,1737645049583,-933.44,0.00022191,3]
[350128503,1737645049593,-917.49,0.00022191,3]
[350128504,1737645049603,-5760.95,0.00022191,3]
[350128505,1737645049613,-245.11201673,0.00022191,3]
[350128506,1737645049623,-2591.49,0.00022191,3]
[350128508,1737645049633,-1114.57,0.00022191,3]
[350128510,1737645049643,-500.0,0.00022192,2]
[350128512,1737645049654,-1510.68950647,0.000222,2]
[350128514,1737645049665,-6054.58365923,0.0002224,2]
[350128516,1737645049675,-56321.79020568,0.000223,7]
[350128518,1737645049685,-7554.38,0.000223,14]
[350128520,1737645049695,-1510.68950647,0.000223,2]
[350128522,1737645049705,-160.0,0.000223,7]
[350128524,1737645049719,-290.13277343,0.00022314,3]
[350128526,1737645049729,-634.36977422,0.00022328,3]
[350128528,1737645049739,-1176.82462049,0.00022328,3]
[350128530,1737645049748,-818.36416732,0.00022328,3]
[350128531,1737645049758,-933.66205468,0.00022328,3]
[350128532,1737645049768,-917.6864062,0.00022328,3]
[350128533,1737645049779,-5761.1331762,0.00022328,3]
[350128534,1737645049789,-2591.54208158,0.00022328,3]
[350128536,1737645049799,-1114.58715387,0.00022328,3]
[350128538,1737645049814,-5000.0,0.00022334,2]
[350128541,1737645049824,-5000.0,0.00022334,2]
[350128542,1737645049833,-5000.0,0.00022334,2]
[350128545,1737645049844,-1510.68950647,0.000224,2]
[350128546,1737645049854,-272.7683698,0.00022421,2]
[350128548,1737645049863,-1000.0,0.00022421,2]
[350128550,1737645049873,-329.73161136,0.00022421,2]
[350128552,1737645049882,-1000.0,0.00022421,2]
[350128554,1737645049892,-1000.0,0.00022421,2]
[350128556,1737645049903,-1073.52700362,0.00022421,2]
[350128558,1737645049913,-1000.0,0.00022421,2]
[350128560,1737645049923,-1000.0,0.00022421,2]
[350128562,1737645049933,-500.0,0.00022466,2]
[350128564,1737645049942,-290.13277343,0.00022486,3]
[350128566,1737645049953,-19903.88150424,0.000225,2]
[350128568,1737645049963,-151.0,0.000225,2]
[350128570,1737645049973,-4519.9,0.000225,30]
[350128572,1737645049983,-1510.68950647,0.000225,2]
[350128574,1737645049993,-1000.0,0.00022521,2]
[350128576,1737645050002,-1559.76097133,0.00022522,2]
[350128578,1737645050012,-1500.0,0.00022522,2]
[350128580,1737645050023,-1478.44038092,0.00022522,2]
[350128583,1737645050032,-1500.0,0.00022522,2]
[350128584,1737645050042,-6054.58365923,0.00022575,2]
[350128587,1737645050051,-16266.28,0.000226,2]
[350128588,1737645050069,-1510.68950647,0.000226,2]
[350128590,1737645050078,-290.13277343,0.00022659,3]
[350128593,1737645050092,-587.0,0.00022687,2]
[350128594,1737645050103,-1510.68950647,0.000227,2]
[350128596,1737645050113,-500.0,0.0002274,2]
[350128599,1737645050124,-109646.88701381,0.0002275,2]
[350128600,1737645050133,-1510.68950647,0.000228,2]
[350128602,1737645050143,-290.13277343,0.00022831,3]
[350128604,1737645050152,-64926.49775957,0.0002287,2]
[350128606,1737645050163,-1510.68950647,0.000229,2]
[350128608,1737645050173,-155.433122,0.000229,5]
[350128610,1737645050183,-6054.58365923,0.0002291,2]
[350128612,1737645050192,-1000.0,0.00023,23]
[350128614,1737645050202,-6952.16040005,0.00023,2]
[350128616,1737645050211,-244.58064868,0.00023,2]
[350128618,1737645050221,-7445.91561665,0.00023,10]
[350128620,1737645050230,-33605.22386346,0.00023,2]
[350128622,1737645050241,-151.0,0.00023,2]
[350128624,1737645050251,-595.57154562,0.00023,2]
[350128626,1737645050260,-11258.69335408,0.00023,3]
[350128628,1737645050269,-20695.4635019,0.00023,30]
[350128630,1737645050278,-1510.68950647,0.00023,2]
[350128632,1737645050288,-25948.0694649,0.00023,2]
[350128634,1737645050297,-200.0,0.00023,2]
[350128636,1737645050312,-290.13277343,0.00023003,3]
[350128638,1737645050321,-500.0,0.00023014,2]
[350128640,1737645050330,-1510.68950647,0.000231,2]
[350128642,1737645050340,-153.51,0.000231,31]
[350128644,1737645050349,-153.51,0.000231,31]
[350128646,1737645050358,-153.51,0.000231,31]
[350128648,1737645050368,-153.51,0.000231,31]
[350128650,1737645050377,-153.51,0.000231,31]
[350128652,1737645050387,-153.51,0.000231,31]
[350128654,1737645050397,-153.51,0.000231,31]
[350128656,1737645050406,-153.51,0.000231,31]
[350128658,1737645050416,-153.51,0.000231,31]
[350128660,1737645050425,-153.51,0.000231,31]
[350128662,1737645050435,-153.51,0.000231,31]
[350128664,1737645050444,-153.51,0.000231,31]
[350128666,1737645050454,-290.13277343,0.00023176,3]
[350128668,1737645050463,-1510.68950647,0.000232,2]
[350128670,1737645050473,-6054.58365923,0.00023245,2]
[350128672,1737645050482,-500.0,0.00023288,2]
[350128674,1737645050491,-151.0,0.000233,2]
[350128676,1737645050500,-1510.68950647,0.000233,2]
[350128678,1737645050509,-11706.0,0.00023328,7]
[350128680,1737645050522,-290.13277343,0.00023348,3]
[350128682,1737645050531,-1510.68950647,0.000234,2]
[350128684,1737645050540,-316.085,0.000234,3]
[350128686,1737645050549,-783.52102357,0.00023422,2]
[350128688,1737645050564,-1500.0,0.00023422,2]
[350128690,1737645050573,-1334.30349223,0.00023422,2]
[350128692,1737645050582,-1179.42296814,0.00023422,2]
[350128694,1737645050591,-1500.0,0.00023422,2]
[350128696,1737645050601,-1000.0,0.00023425,30]
[350128698,1737645050611,-1000.0,0.00023425,30]
[350128700,1737645050620,-619.83926852,0.000235,2]
[350128702,1737645050630,-1510.68950647,0.000235,2]
[350128704,1737645050639,-290.13277343,0.00023521,3]
[350128706,1737645050648,-1090.2406831,0.00023522,2]
[350128708,1737645050657,-416.85,0.00023547,2]
[350128710,1737645050669,-1823.58169614,0.00023556,2]
[350128712,1737645050678,-2500.0,0.00023556,2]
[350128714,1737645050688,-25518.12251403,0.00023561,14]
[350128716,1737645050699,-500.0,0.00023562,2]
[350128718,1737645050709,-1000.0,0.00023562,30]
[350128720,1737645050718,-1000.0,0.00023562,30]
[350128722,1737645050728,-1000.0,0.00023562,30]
[350128724,1737645050737,-6054.58365923,0.0002358,2]
[350128726,1737645050746,-7554.38,0.000236,14]
[350128728,1737645050755,-300.0,0.000236,10]
[350128730,1737645050764,-1510.68950647,0.000236,2]
[350128732,1737645050774,-1006.94995536,0.00023607,10]
[350128734,1737645050784,-2000.0,0.00023616,30]
[350128736,1737645050793,-1000.0,0.00023616,30]
[350128738,1737645050807,-2000.0,0.00023671,30]
[350128740,1737645050816,-1000.0,0.00023671,30]
[350128742,1737645050825,-290.13277343,0.00023693,3]
[350128745,1737645050836,-1000.0,0.00023699,30]
[350128747,1737645050845,-1000.0,0.00023699,30]
[350128749,1737645050854,-1510.68950647,0.000237,2]
[350128751,1737645050863,-2000.0,0.00023726,30]
[350128752,1737645050872,-1000.0,0.00023726,30]
[350128754,1737645050882,-2000.0,0.00023781,30]
[350128756,1737645050891,-1000.0,0.00023781,30]
[350128758,1737645050900,-1008.95853206,0.000238,2]
[350128760,1737645050909,-500.0,0.000238,10]
[350128762,1737645050918,-1510.68950647,0.000238,2]
[350128773,1737645051012,-2000.0,0.0002382,2]
[350128775,1737645051022,-2000.0,0.0002382,2]
[350128777,1737645051031,-500.0,0.00023836,2]
[350128779,1737645051040,-1000.0,0.00023836,30]
[350128781,1737645051050,-1000.0,0.00023836,30]
[350128783,1737645051063,-2000.0,0.00023836,30]
[350128785,1737645051072,-1000.0,0.00023836,30]
[350128787,1737645051082,-290.13277343,0.00023866,3]
[350128789,1737645051091,-2000.0,0.0002389,30]
[350128791,1737645051101,-1710.57047187,0.000239,10]
[350128793,1737645051112,-16266.28,0.000239,2]
[350128795,1737645051122,-1510.68950647,0.000239,2]
[350128797,1737645051131,-1088.68386099,0.000239,2]
[350128799,1737645051140,-6054.58365923,0.00023915,2]
[350128801,1737645051149,-2000.0,0.00023945,30]
[350128803,1737645051161,-10000.0,0.0002396,2]
[350128805,1737645051170,-1000.0,0.00023973,30]
[350128807,1737645051179,-1000.0,0.00023973,30]
[350128809,1737645051189,-4488.40979725,0.00024,2]
[350128811,1737645051198,-1000.0,0.00024,24]
[350128813,1737645051208,-6110.41213667,0.00024,2]
[350128815,1737645051217,-2982.80443943,0.00024,7]
[350128817,1737645051227,-173.4498837,0.00024,2]
[350128819,1737645051236,-1661.52243998,0.00024,2]
[350128821,1737645051245,-2000.0,0.00024,30]
[350128823,1737645051254,-315.000001,0.00024,7]
[350128825,1737645051264,-201.30978828,0.00024,14]
[350128827,1737645051273,-1510.68950647,0.00024,2]
[350128829,1737645051284,-4355.73590974,0.00024,30]
[350128831,1737645051294,-4118.5,0.00024,2]
[350128833,1737645051307,-500.0,0.00024,2]
[350128835,1737645051317,-500.0,0.00024,2]
[350128837,1737645051326,-500.0,0.00024,2]
[350128839,1737645051335,-500.0,0.00024,2]
[350128841,1737645051344,-500.0,0.00024,2]
[350128843,1737645051353,-500.0,0.00024,2]
[350128845,1737645051363,-500.0,0.00024,2]
[350128847,1737645051372,-500.0,0.00024,2]
[350128850,1737645051382,-500.0,0.00024,2]
[350128852,1737645051391,-500.0,0.00024,2]
[350128854,1737645051401,-500.0,0.00024,2]
[350128856,1737645051410,-500.0,0.00024,2]
[350128857,1737645051419,-500.0,0.00024,2]
[350128858,1737645051428,-500.0,0.00024,2]
[350128859,1737645051438,-500.0,0.00024,2]
[350128860,1737645051447,-500.0,0.00024,2]
[350128861,1737645051457,-500.0,0.00024,2]
[350128862,1737645051466,-500.0,0.00024,2]
[350128863,1737645051475,-500.0,0.00024,2]
[350128864,1737645051483,-585.75462421,0.00024,2]
[350128865,1737645051492,-500.0,0.00024,2]
[350128866,1737645051502,-500.0,0.00024,2]
[350128867,1737645051511,-500.0,0.00024,2]
[350128868,1737645051520,-500.0,0.00024,2]
[350128869,1737645051529,-500.0,0.00024,2]
[350128870,1737645051538,-500.0,0.00024,2]
[350128871,1737645051548,-500.0,0.00024,2]
[350128873,1737645051561,-500.0,0.00024,2]
[350128875,1737645051571,-500.0,0.00024,2]
[350128877,1737645051581,-500.0,0.00024,2]
[350128879,1737645051590,-500.0,0.00024,2]
[350128880,1737645051599,-500.0,0.00024,2]
[350128881,1737645051608,-500.0,0.00024,2]
[350128882,1737645051617,-500.0,0.00024,2]
[350128883,1737645051627,-500.0,0.00024,2]
[350128884,1737645051637,-589.33733169,0.00024,2]
[350128885,1737645051646,-687.51845837,0.00024,2]
[350128886,1737645051655,-160.0,0.00024002,120]
[350128887,1737645051665,-22432.35383286,0.00024017,61]
[350128888,1737645051681,-500.0,0.00024017,61]
[350128889,1737645051696,-304.05606856,0.00024017,61]
[350128890,1737645051723,-319.999993,0.00024017,61]
[350128891,1737645051736,-1086.9865878,0.00024017,61]
[350128892,1737645051765,10000.0,0.00024,120]
[350128914,1737645052777,10000.0,0.00024,120]
[350129302,1737645057268,10000.0,0.00024,120]
[350130034,1737645065890,10000.0,0.00024,120]
[350130528,1737645073724,10000.0,0.00024,120]
[350130529,1737645078907,10000.0,0.00024,120]